bitfinex/quotes_SOLUSD_20251226
["timestamp","ask_amount","ask_price","bid_price","bid_amount"]
[1766792082585,0.66,122.56,122.53,0.72]
[1766792083487,0.66,122.56,122.53,8.8812257]
[1766792084083,0.66,122.56,122.54,0.72]
[1766792085685,0.66,122.56,122.53,8.1612257]
[1766792085889,0.66,122.56,122.53,8.8212257]
[1766792087523,0.66,122.56,122.53,8.1612257]
[1766792087664,0.66,122.56,122.54,0.66]
[1766792088975,2.87300949,122.56,122.54,0.66]
[1766792091492,0.67,122.58,122.54,0.66]
[1766792091792,2.88300949,122.56,122.54,0.66]
[1766792097499,0.67,122.56,122.54,0.66]
[1766792097981,2.88300949,122.56,122.54,0.66]
[1766792099581,0.67,122.56,122.54,0.66]
[1766792100876,2.21300949,122.57,122.54,0.66]
[1766792101072,2.88300949,122.57,122.54,0.66]
[1766792102292,2.88300949,122.56,122.53,0.68]
[1766792102489,2.88300949,122.55,122.53,0.68]
[1766792103777,2.21300949,122.55,122.53,0.68]
[1766792103989,0.67,122.55,122.53,0.68]
[1766792104390,0.67,122.53,122.5,0.68]
[1766792104697,0.67,122.53,122.51,0.68]
[1766792105501,0.67,122.55,122.52,0.68]
[1766792105882,2.88300949,122.55,122.52,0.68]
[1766792106480,0.67,122.55,122.52,0.68]
[1766792106690,0.67,122.55,122.52,2.89300949]
[1766792106892,0.67,122.55,122.53,0.68]
[1766792110505,2.88300949,122.57,122.54,0.68]
[1766792110706,0.67,122.57,122.54,0.68]
[1766792111289,0.67,122.57,122.54,8.84056733]
[1766792112710,2.88300949,122.57,122.54,8.84056733]
[1766792113615,54.57190461,122.58,122.54,8.16056733]
[1766792113799,56.7849141,122.58,122.55,0.68]
[1766792113999,57.4549141,122.58,122.55,0.68]
[1766792116008,56.7849141,122.58,122.55,0.68]
[1766792116200,0.69,122.57,122.55,0.68]
[1766792118913,2.90300949,122.57,122.55,0.68]
[1766792119995,4.14830766,122.57,122.55,0.68]
[1766792120313,3.45830766,122.57,122.55,0.68]
[1766792130422,4.14830766,122.57,122.55,0.68]
[1766792131013,0.69,122.56,122.53,15.63]
[1766792131321,4.14830766,122.56,122.53,15.63]
[1766792131700,4.14830766,122.56,122.53,14.92]
[1766792132025,4.14830766,122.56,122.54,0.71]
[1766792134510,4.14830766,122.56,122.53,15.63]
[1766792134704,4.14830766,122.56,122.53,14.92]
[1766792135019,4.14830766,122.56,122.54,0.71]
[1766792141129,0.69,122.56,122.54,0.71]
[1766792150234,3.45830766,122.56,122.53,14.92]
[1766792150533,0.69,122.55,122.53,14.92]
[1766792151437,0.69,122.55,122.53,15.57]
[1766792160445,3.45830766,122.56,122.53,15.57]
[1766792160648,4.15830766,122.56,122.54,0.68]
[1766792162148,78.66981766,122.58,122.54,0.68]
[1766792162349,0.1,122.6,122.57,4.13830766]
[1766792162528,0.8,122.6,122.57,0.68]
[1766792162854,4.25830766,122.6,122.57,0.68]
[1766792163148,0.1,122.6,122.58,0.68]
[1766792163340,0.1,122.6,122.59,0.68]
[1766792163651,0.1,122.61,122.59,4.13830766]
[1766792165947,0.1,122.61,122.59,19.05830766]
[1766792166849,0.1,122.61,122.59,15.6]
[1766792167456,0.8,122.61,122.59,15.6]
[1766792169750,0.7,122.6,122.59,14.92]
[1766792170839,0.7,122.6,122.57,14.92]
[1766792171040,0.7,122.6,122.58,0.68]
[1766792172356,0.7,122.6,122.57,14.92]
[1766792172557,0.7,122.6,122.56,8.1590265]
[1766792172558,0.7,122.58,122.56,14.92]
[1766792173061,0.7,122.58,122.56,15.6]
[1766792173554,0.7,122.59,122.56,15.6]
[1766792174237,0.40539841,122.61,122.57,4.14830766]
[1766792174441,0.72,122.6,122.57,4.14830766]
[1766792175950,0.72,122.6,122.58,3.45830766]
[1766792179964,0.72,122.6,122.58,2.21153223]
[1766792180860,0.72,122.6,122.57,0.69]
[1766792181067,0.72,122.6,122.58,2.21153223]
[1766792183847,0.72,122.6,122.57,2.90153223]
[1766792184545,0.82,122.61,122.58,2.90153223]
[1766792186568,0.82,122.61,122.58,0.69]
[1766792186870,0.82,122.61,122.58,2.90153223]
[1766792187050,0.82,122.61,122.58,0.69]
[1766792188346,0.82,122.61,122.57,11.06011935]
[1766792189168,0.82,122.61,122.57,10.37011935]
[1766792189374,0.82,122.61,122.58,0.69]
[1766792190370,0.82,122.61,122.59,0.69]
[1766792191058,0.82,122.61,122.58,10.36946931]
[1766792191271,0.82,122.61,122.58,11.05946931]
[1766792194680,0.82,122.61,122.58,8.84793708]
[1766792196374,0.82,122.61,122.56,15.61]
[1766792196375,0.72,122.6,122.56,15.61]
[1766792196579,0.72,122.6,122.57,0.69]
[1766792198993,0.72,122.6,122.56,15.61]
[1766792198994,2.21153223,122.6,122.56,15.61]
[1766792199198,0.72,122.58,122.55,0.69]
[1766792199495,0.72,122.57,122.55,0.69]
[1766792201794,2.21153223,122.59,122.55,0.69]
[1766792202004,0.72,122.58,122.55,0.69]
[1766792205899,0.72,122.58,122.55,2.90153223]
[1766792207669,2.21153223,122.59,122.55,10.37139254]
[1766792207870,2.92153223,122.59,122.56,0.69]
[1766792208490,0.71,122.58,122.56,0.69]
[1766792212386,0.71,122.58,122.54,0.71]
[1766792212387,0.71,122.57,122.54,0.71]
[1766792212578,0.71,122.57,122.55,14.9]
[1766792216488,2.92153223,122.59,122.56,0.71]
[1766792216691,0.71,122.58,122.56,0.71]
[1766792217489,0.71,122.58,122.55,15.61]
[1766792219585,2.92153223,122.58,122.55,15.61]
[1766792223600,0.71,122.58,122.55,15.61]
[1766792224502,0.71,122.57,122.55,14.9]
[1766792225192,0.71,122.57,122.55,15.61]
[1766792227800,0.71,122.59,122.56,0.71]
[1766792228586,0.71,122.59,122.55,15.61]
[1766792231203,0.71,122.58,122.55,14.9]
[1766792231586,2.21153223,122.58,122.55,14.9]
[1766792231787,0.71,122.57,122.55,14.9]
[1766792238806,2.21153223,122.56,122.51,0.71]
[1766792239006,0.71,122.54,122.52,14.92]
[1766792243890,0.71,122.52,122.5,15.63]
[1766792244190,0.71,122.53,122.5,15.63]
[1766792249310,4.16972553,122.53,122.5,15.63]
[1766792250014,0.71,122.53,122.5,15.63]
[1766792252214,4.16972553,122.54,122.51,0.71]
[1766792257294,3.45972553,122.55,122.51,0.71]
[1766792257506,4.16972553,122.55,122.52,0.71]
[1766792257916,3.45972553,122.55,122.52,0.71]
[1766792258221,0.71,122.54,122.52,0.71]
[1766792272214,4.16972553,122.55,122.52,0.71]
[1766792274933,58.03163014,122.56,122.52,0.71]
[1766792275312,58.71163014,122.56,122.52,0.71]
[1766792278037,58.03163014,122.56,122.52,0.71]
[1766792278341,0.68,122.55,122.52,0.71]
[1766792280938,0.68,122.56,122.53,0.69]
[1766792281138,4.13972553,122.56,122.53,0.69]
[1766792281929,0.68,122.55,122.53,0.69]
[1766792285643,3.45972553,122.56,122.53,0.69]
[1766792285837,4.13972553,122.56,122.53,0.69]
[1766792287547,3.45972553,122.56,122.53,0.69]
[1766792288127,4.13972553,122.57,122.53,0.69]
[1766792288527,3.45972553,122.57,122.53,0.69]
[1766792288846,0.68,122.56,122.53,0.69]
[1766792291636,4.13972553,122.57,122.54,0.69]
[1766792291838,0.68,122.57,122.54,0.69]
[1766792292143,0.68,122.57,122.54,15.61]
[1766792293331,4.13972553,122.58,122.55,0.69]
[1766792294247,3.45972553,122.58,122.55,0.69]
[1766792294623,4.17972553,122.58,122.55,0.69]
[1766792296863,0.72,122.58,122.55,0.69]
[1766792297851,4.17972553,122.58,122.55,0.69]
[1766792298749,0.72,122.58,122.55,3.45972553]
[1766792298939,0.72,122.58,122.56,0.7]
[1766792299136,58.75163014,122.59,122.56,0.7]
[1766792299746,0.72,122.58,122.56,0.7]
[1766792303660,8.2560034,122.61,122.56,0.7]
[1766792303842,2.93257614,122.59,122.56,0.7]
[1766792304051,2.21257614,122.59,122.56,0.7]
[1766792304359,8.2560034,122.61,122.52,2.21257614]
[1766792304360,0.72,122.56,122.52,17.13257614]
[1766792304531,0.72,122.56,122.53,0.7]
[1766792304854,0.72,122.56,122.53,2.91257614]
[1766792306548,0.72,122.56,122.53,0.7]
[1766792310268,2.21257614,122.55,122.52,14.92]
[1766792310563,0.72,122.54,122.52,14.92]
[1766792311349,0.72,122.54,122.52,15.62]
[1766792313159,0.72,122.54,122.52,14.92]
[1766792313339,0.72,122.54,122.49,10.43767296]
[1766792313340,0.72,122.53,122.5,15.62]
[1766792313961,0.72,122.53,122.5,17.83257614]
[1766792314337,0.72,122.53,122.5,15.62]
[1766792315339,2.21257614,122.53,122.5,14.92]
[1766792315667,0.72,122.52,122.5,14.92]
[1766792315957,2.93257614,122.52,122.5,14.92]
[1766792316161,2.93257614,122.52,122.5,15.62]
[1766792316533,2.93257614,122.52,122.47,8.16506223]
[1766792316733,0.72,122.49,122.46,8.86550903]
[1766792316958,0.72,122.49,122.47,14.92]
[1766792319874,0.72,122.49,122.47,15.62]
[1766792322541,2.21257614,122.48,122.47,14.92]
[1766792322745,2.21257614,122.48,122.46,0.7]
[1766792322958,2.93257614,122.48,122.46,0.7]
[1766792324150,0.72,122.48,122.46,0.7]
[1766792324442,0.69,122.46,122.45,0.2]
[1766792324760,2.88257614,122.47,122.45,0.2]
[1766792324964,0.67,122.47,122.45,0.2]
[1766792325168,2.88257614,122.47,122.45,0.2]
[1766792329366,2.88257614,122.46,122.45,0.2]
[1766792333165,0.67,122.46,122.45,0.2]
[1766792333554,2.88257614,122.46,122.45,0.2]
[1766792348302,0.67,122.46,122.45,0.2]
[1766792348589,2.88257614,122.46,122.45,0.2]
[1766792349297,2.21257614,122.49,122.46,0.71]
[1766792349480,0.67,122.5,122.47,0.71]
[1766792349998,2.88257614,122.5,122.47,0.71]
[1766792352279,0.67,122.5,122.47,0.71]
[1766792352481,2.88257614,122.5,122.47,0.71]
[1766792356890,0.7,122.49,122.47,0.71]
[1766792359679,0.7,122.48,122.46,14.92]
[1766792359883,0.7,122.48,122.46,15.62]
[1766792360487,2.21257614,122.49,122.46,15.62]
[1766792360686,2.91257614,122.49,122.46,15.62]
[1766792362071,4.16292064,122.49,122.46,15.62]
[1766792362394,0.7,122.48,122.46,15.62]
[1766792363294,3.46292064,122.49,122.46,15.62]
[1766792363503,4.16292064,122.49,122.46,15.62]
[1766792388214,0.66,122.48,122.46,15.62]
[1766792388713,3.46292064,122.49,122.46,15.62]
[1766792388913,4.12292064,122.49,122.46,15.62]
[1766792390417,0.66,122.46,122.45,0.2]
[1766792390713,4.12292064,122.46,122.43,0.68]
[1766792394519,3.46292064,122.47,122.43,11.63074682]
[1766792394724,0.66,122.48,122.45,0.68]
[1766792415145,4.12292064,122.48,122.45,0.68]
[1766792422060,2.87674788,122.48,122.45,0.68]
[1766792422550,2.92674788,122.47,122.44,23.08712709]
[1766792422760,2.21674788,122.47,122.44,15.6]
[1766792423055,2.92674788,122.47,122.44,15.6]
[1766792423649,2.92674788,122.47,122.44,14.92]
[1766792423968,2.92674788,122.47,122.45,0.68]
[1766792426665,0.71,122.47,122.45,0.68]
[1766792426840,2.92674788,122.47,122.45,0.68]
[1766792445078,0.71,122.47,122.45,0.68]
[1766792449981,2.92674788,122.47,122.44,23.78705599]
[1766792450482,0.71,122.47,122.44,23.78705599]
[1766792456692,2.92674788,122.47,122.44,23.78705599]
[1766792460281,0.65,122.46,122.44,14.92]
[1766792461071,0.65,122.46,122.44,15.61]
[1766792465587,2.21674788,122.45,122.42,0.2]
[1766792465802,2.86674788,122.44,122.42,0.2]
[1766792466088,2.86674788,122.44,122.42,0.89]
[1766792466293,0.65,122.44,122.42,0.89]
[1766792467463,2.86674788,122.44,122.42,0.89]
[1766792471286,2.21674788,122.44,122.42,0.89]
[1766792471495,2.86674788,122.45,122.42,0.89]
[1766792474072,2.21674788,122.44,122.42,0.89]
[1766792474388,0.65,122.45,122.42,0.89]
[1766792474696,2.21674788,122.44,122.42,0.89]
[1766792475197,2.88674788,122.44,122.42,0.89]
[1766792478893,2.21674788,122.44,122.42,0.2]
[1766792479099,2.88674788,122.43,122.42,0.2]
[1766792479596,0.67,122.43,122.42,0.2]
[1766792509320,8.16623541,122.46,122.42,0.2]
[1766792509617,0.7,122.44,122.42,0.2]
[1766792511414,4.16593316,122.43,122.42,0.2]
[1766792511796,0.7,122.43,122.42,0.2]
[1766792512319,0.7,122.43,122.41,0.2]
[1766792512618,0.7,122.42,122.41,0.2]
[1766792513407,3.46593316,122.43,122.41,0.2]
[1766792513598,0.7,122.43,122.41,0.2]
[1766792514529,4.16593316,122.42,122.41,0.2]
[1766792514813,4.16593316,122.42,122.4,0.2]
[1766792514814,0.7,122.41,122.39,0.2]
[1766792515018,4.16593316,122.4,122.39,0.2]
[1766792516824,0.7,122.39,122.38,0.2]
[1766792517001,4.16593316,122.39,122.38,0.2]
[1766792517595,4.16593316,122.39,122.37,0.2]
[1766792517800,3.46593316,122.38,122.37,0.2]
[1766792518001,0.7,122.38,122.37,0.2]
[1766792518997,4.16593316,122.38,122.37,0.2]
[1766792520294,0.7,122.38,122.37,0.2]
[1766792520717,4.16593316,122.38,122.37,0.2]
[1766792521820,0.7,122.37,122.35,0.2]
[1766792522016,0.7,122.35,122.34,0.2]
[1766792522216,4.16593316,122.35,122.34,0.2]
[1766792522919,0.7,122.35,122.34,0.2]
[1766792523518,4.16593316,122.36,122.34,0.2]
[1766792524317,4.16593316,122.36,122.34,0.9]
[1766792525224,3.46593316,122.37,122.35,0.7]
[1766792525819,4.16593316,122.37,122.35,0.7]
[1766792526022,4.16593316,122.37,122.34,0.9]
[1766792530913,62.74226229,122.4,122.34,8.37387851]
[1766792531121,4.16593316,122.4,122.36,0.7]
[1766792531315,3.46593316,122.4,122.36,0.7]
[1766792531642,0.7,122.39,122.36,0.7]
[1766792532137,4.16593316,122.4,122.36,0.7]
[1766792533414,3.46593316,122.39,122.36,0.7]
[1766792533815,4.16593316,122.4,122.36,0.7]
[1766792534243,0.7,122.4,122.36,0.7]
[1766792534443,3.46593316,122.38,122.36,0.7]
[1766792534758,4.12593316,122.39,122.36,0.7]
[1766792540323,0.66,122.39,122.36,0.7]
[1766792554048,2.21984154,122.4,122.36,0.7]
[1766792554245,2.87984154,122.4,122.36,0.7]
[1766792554954,0.66,122.39,122.36,0.7]
[1766792582377,2.87984154,122.39,122.36,0.7]
[1766792582895,0.66,122.39,122.36,0.7]
[1766792584302,2.21984154,122.4,122.34,15.14]
[1766792584303,0.71,122.36,122.34,15.14]
[1766792584671,0.71,122.36,122.34,15.83]
[1766792587502,0.71,122.36,122.34,15.14]
[1766792588101,0.71,122.36,122.34,0.2]
[1766792589396,0.71,122.37,122.34,0.89]
[1766792593002,2.92984154,122.37,122.34,0.89]
[1766792601709,0.71,122.37,122.34,0.89]
[1766792601908,2.92984154,122.37,122.34,0.89]
[1766792602111,0.71,122.37,122.34,0.89]
[1766792602310,2.92984154,122.37,122.34,0.89]
[1766792605907,4.17972374,122.37,122.34,0.89]
[1766792614621,0.71,122.37,122.34,0.89]
[1766792614823,4.17972374,122.37,122.34,0.89]
[1766792617426,3.46972374,122.36,122.34,0.2]
[1766792617731,0.71,122.35,122.34,0.2]
[1766792618425,4.17972374,122.35,122.34,0.2]
[1766792623736,4.17972374,122.35,122.33,0.2]
[1766792623917,4.17972374,122.34,122.33,0.2]
[1766792624317,0.71,122.34,122.33,0.2]
[1766792624515,4.14972374,122.35,122.33,0.2]
[1766792637647,4.14972374,122.35,122.33,0.9]
[1766792640453,4.13972374,122.34,122.33,0.2]
[1766792642232,0.67,122.34,122.33,0.2]
[1766792646737,0.67,122.34,122.33,0.149]
[1766792648172,4.13972374,122.35,122.33,0.149]
[1766792649435,3.46972374,122.34,122.33,0.149]
[1766792649636,4.13972374,122.35,122.33,0.149]
[1766792650946,0.67,122.35,122.33,0.149]
[1766792651266,4.13972374,122.36,122.33,0.849]
[1766792651439,0.67,122.36,122.33,0.849]
[1766792651842,4.13972374,122.36,122.33,0.849]
[1766792652166,0.30539841,122.38,122.34,0.7]
[1766792652344,4.13972374,122.39,122.35,0.7]
[1766792652660,0.67,122.38,122.35,0.7]
[1766792653362,0.67,122.38,122.35,4.16972374]
[1766792653837,0.67,122.38,122.35,0.7]
[1766792659280,4.13972374,122.38,122.35,0.7]
[1766792663984,3.46972374,122.39,122.36,0.69]
[1766792664161,4.14972374,122.4,122.36,0.69]
[1766792664677,0.68,122.39,122.36,0.69]
[1766792664878,4.14972374,122.39,122.36,0.69]
[1766792668057,2.89984728,122.39,122.36,0.69]
[1766792670181,0.68,122.38,122.36,0.69]
[1766792670481,2.21984728,122.39,122.36,0.69]
[1766792670678,2.89984728,122.39,122.36,0.69]
[1766792687002,0.68,122.39,122.36,0.69]
[1766792687178,2.89984728,122.39,122.36,0.69]
[1766792695587,2.21984728,122.38,122.36,0.69]
[1766792695910,2.88984728,122.38,122.36,0.69]
[1766792696698,2.88984728,122.37,122.34,15.61]
[1766792697812,2.88984728,122.37,122.35,0.67]
[1766792700200,2.52524569,122.4,122.33,8.32335302]
[1766792700201,0.67,122.36,122.33,0.149]
[1766792700523,2.88984728,122.35,122.33,0.149]
[1766792701201,2.88984728,122.34,122.33,0.149]
[1766792701414,2.88984728,122.34,122.32,0.87]
[1766792705621,2.88984728,122.34,122.32,0.2]
[1766792705622,0.67,122.33,122.32,0.2]
[1766792708135,2.88984728,122.34,122.32,0.2]
[1766792708428,0.67,122.34,122.32,0.2]
[1766792708820,2.88984728,122.34,122.32,0.2]
[1766792710230,0.67,122.34,122.32,0.87]
[1766792711427,0.67,122.35,122.33,0.67]
[1766792713225,2.88984728,122.35,122.33,0.67]
[1766792715919,0.67,122.35,122.32,0.91]
[1766792716120,2.88984728,122.35,122.33,0.71]
[1766792719430,2.21984728,122.34,122.32,0.91]
[1766792719612,2.89984728,122.34,122.32,0.91]
[1766792719807,8.17263415,122.36,122.32,0.2]
[1766792719808,2.21984728,122.33,122.32,0.2]
[1766792720012,2.89984728,122.33,122.32,0.2]
[1766792725624,0.68,122.32,122.31,0.2]
[1766792726232,2.21984728,122.33,122.31,0.2]
[1766792726539,2.89984728,122.32,122.3,0.2]
[1766792726751,2.21984728,122.31,122.3,0.2]
[1766792727036,2.89984728,122.32,122.3,0.2]
[1766792730137,4.15284644,122.32,122.3,0.2]
[1766792733428,3.47284644,122.31,122.3,0.2]
[1766792734126,0.68,122.32,122.3,0.2]
[1766792734330,4.15284644,122.33,122.3,0.2]
[1766792734528,4.15284644,122.33,122.3,0.91]
[1766792736038,3.47284644,122.33,122.31,0.71]
[1766792736439,4.15284644,122.33,122.31,0.71]
[1766792740344,4.15284644,122.33,122.3,0.2]
[1766792740565,4.15284644,122.33,122.3,0.91]
[1766792741138,3.47284644,122.32,122.3,0.91]
[1766792741338,4.15284644,122.33,122.3,0.91]
[1766792745854,3.47284644,122.32,122.3,0.91]
[1766792746051,4.19284644,122.32,122.3,0.91]
[1766792746960,3.47284644,122.32,122.3,0.91]
[1766792758465,0.72,122.33,122.3,0.91]
[1766792758671,3.47284644,122.32,122.3,0.91]
[1766792761056,4.19284644,122.33,122.3,0.91]
[1766792762865,58.04475105,122.34,122.31,0.66]
[1766792763373,4.19284644,122.36,122.31,0.66]
[1766792763847,4.19284644,122.36,122.32,0.66]
[1766792764668,4.19284644,122.36,122.33,0.66]
[1766792768271,0.72,122.36,122.33,0.66]
[1766792768452,4.19284644,122.36,122.33,0.66]
[1766792773991,3.47284644,122.36,122.33,0.66]
[1766792774164,3.47284644,122.35,122.32,8.1750943]
[1766792774480,3.47284644,122.35,122.33,0.72]
[1766792775283,0.69,122.34,122.31,23.83587623]
[1766792775465,3.47284644,122.35,122.32,0.72]
[1766792776190,3.47284644,122.34,122.32,0.72]
[1766792782897,4.16284644,122.35,122.32,0.72]
[1766792784301,3.47284644,122.34,122.32,0.72]
[1766792787405,0.69,122.35,122.32,0.72]
[1766792787575,3.47284644,122.34,122.32,0.72]
[1766792789898,4.16284644,122.35,122.32,0.72]
[1766792790105,2.91145096,122.35,122.32,0.72]
[1766792791396,2.22145096,122.34,122.32,0.72]
[1766792791605,2.91145096,122.35,122.32,0.72]
[1766792801025,2.22145096,122.35,122.32,0.72]
[1766792801313,2.22145096,122.33,122.31,15.66]
[1766792801509,2.91145096,122.34,122.31,15.66]
[1766792804410,2.91145096,122.34,122.31,14.94]
[1766792804710,2.91145096,122.34,122.32,0.66]
[1766792808220,2.22145096,122.34,122.32,0.66]
[1766792808727,2.91145096,122.39,122.34,0.66]
[1766792809026,2.91145096,122.39,122.35,0.66]
[1766792809705,2.22145096,122.39,122.35,0.66]
[1766792809905,0.68,122.38,122.35,0.66]
[1766792811022,0.68,122.39,122.36,0.66]
[1766792811211,2.90145096,122.39,122.36,0.66]
[1766792812723,0.68,122.38,122.36,0.66]
[1766792814523,2.90145096,122.39,122.36,8.8326043]
[1766792819836,0.68,122.39,122.36,8.8326043]
[1766792821041,2.90145096,122.39,122.36,8.8326043]
[1766792821338,0.68,122.38,122.36,8.8326043]
[1766792822735,0.68,122.38,122.36,0.66]
[1766792823833,54.57190461,122.41,122.36,0.66]
[1766792824034,0.68,122.39,122.36,0.66]
[1766792825239,2.90145096,122.39,122.36,0.66]
[1766792826742,0.68,122.39,122.36,0.66]
[1766792835042,2.65203178,122.39,122.36,0.66]
[1766792838350,0.66,122.39,122.36,0.66]
[1766792838650,2.65203178,122.39,122.36,0.66]
[1766792838850,0.66,122.39,122.36,0.66]
[1766792840738,2.65203178,122.39,122.36,0.66]
[1766792850068,3.77261232,122.39,122.36,0.66]
[1766792856160,0.66,122.39,122.36,0.66]
[1766792858666,0.66,122.42,122.38,0.68]
[1766792859271,0.66,122.41,122.38,0.68]
[1766792863467,0.66,122.41,122.39,0.68]
[1766792864577,0.69,122.43,122.4,0.68]
[1766792864767,0.69,122.42,122.4,0.68]
[1766792865784,0.69,122.42,122.39,8.85058754]
[1766792866880,0.69,122.42,122.39,0.68]
[1766792886397,3.11261232,122.42,122.39,0.68]
[1766792886698,3.80261232,122.4,122.37,15.62]
[1766792887975,0.69,122.4,122.37,15.62]
[1766792888175,0.69,122.4,122.37,0.68]
[1766792888376,0.69,122.39,122.36,8.85241072]
[1766792888886,0.69,122.39,122.37,0.68]
[1766792902519,0.7,122.41,122.37,0.68]
[1766792902915,3.81261232,122.4,122.37,0.68]
[1766792903418,0.7,122.4,122.37,0.68]
[1766792903628,3.81261232,122.4,122.37,0.68]
[1766792904000,0.7,122.39,122.37,0.68]
[1766792931133,0.7,122.39,122.36,0.67]
[1766792931744,0.7,122.39,122.35,23.78313589]
[1766792931943,0.7,122.39,122.36,0.67]
[1766792933022,0.7,122.39,122.35,23.78313589]
[1766792933222,0.7,122.39,122.35,23.11313589]
[1766792933423,0.7,122.39,122.35,23.78313589]
[1766792933640,0.7,122.39,122.35,23.11313589]
[1766792933837,0.7,122.39,122.36,0.67]
[1766792936853,0.7,122.39,122.35,23.11313589]
[1766792937038,0.7,122.39,122.35,23.78313589]
[1766792938954,0.7,122.39,122.35,23.78321788]
[1766792940450,0.7,122.39,122.35,15.61]
[1766792940451,1.99170291,122.39,122.35,15.61]
[1766792940629,0.71,122.38,122.34,8.84364649]
[1766792941155,0.71,122.38,122.35,0.67]
[1766792942155,0.71,122.36,122.33,34.22197151]
[1766792942850,0.71,122.36,122.33,14.94]
[1766792943053,0.71,122.35,122.33,14.94]
[1766792943854,0.71,122.35,122.32,0.67]
[1766792943855,2.70170291,122.35,122.32,0.67]
[1766792944456,0.71,122.35,122.32,0.67]
[1766792945950,2.70170291,122.35,122.32,0.67]
[1766792947956,0.71,122.34,122.32,0.67]
[1766792950059,0.71,122.34,122.31,23.11579113]
[1766792950354,0.71,122.34,122.31,23.78579113]
[1766792951064,0.71,122.31,122.29,0.2]
[1766792951355,2.70170291,122.31,122.29,0.2]
[1766792952949,0.71,122.31,122.29,0.2]
[1766792953156,2.70170291,122.31,122.29,0.2]
[1766792956068,0.71,122.31,122.29,0.2]
[1766792956250,2.70170291,122.31,122.29,0.2]
[1766792958298,0.71,122.31,122.29,0.2]
[1766792961374,2.70170291,122.31,122.29,0.2]
[1766792963372,2.70170291,122.31,122.29,0.88]
[1766792964173,0.71,122.31,122.29,0.88]
[1766792965257,2.70170291,122.31,122.29,0.88]
[1766792969083,0.71,122.31,122.29,0.88]
[1766792969391,2.69170291,122.32,122.29,0.88]
[1766792969676,2.69170291,122.33,122.3,0.68]
[1766792970385,0.7,122.32,122.3,0.68]
[1766792981159,1.00539841,122.37,122.31,14.94]
[1766792981364,1.00539841,122.37,122.33,0.68]
[1766792981365,0.7,122.37,122.33,0.68]
[1766792981566,3.81606416,122.35,122.32,0.68]
[1766792983191,0.7,122.35,122.32,0.68]
[1766792988779,3.81606416,122.35,122.32,0.68]
[1766792991492,0.66,122.33,122.31,14.94]
[1766792991693,0.66,122.32,122.31,14.94]
[1766792991997,0.66,122.32,122.3,0.71]
[1766792993197,3.11606416,122.33,122.3,0.71]
[1766792993498,3.77606416,122.33,122.3,0.71]
[1766792995093,3.11606416,122.33,122.3,0.71]
[1766792997179,3.77606416,122.33,122.3,0.71]
[1766793000501,3.77606416,122.32,122.29,24.02711323]